[Event "Titled Tuesday Blitz July 25 Late 2023"]
[White "Antonica, Dragos-Andrei"]
[Black "Ibarra Jerez, Jose Carlos"]
[WhiteFideId "1246372"]
[BlackFideId "2226332"]
[WhiteElo "2547"]
[BlackElo "2902"]
[Result "0-1"]
[Round "4"]
[TimeControl "180+2"]
[Date "2023.07.25"]
[WhiteClock "0:00:04"]
[BlackClock "0:00:04"]
[Board "38"]

1. b3 {[%clk 0:02:59]}  c5 {[%clk 0:02:59]} 2. Bb2 {[%clk 0:02:58]}  d6 {[%clk 0:02:59]} 3. Nf3 {[%clk 0:02:58]}  e5 {[%clk 0:02:59]} 4. e4 {[%clk 0:02:58]}  g5 {[%clk 0:02:57]} 5. h3 {[%clk 0:02:56]}  Bg7 {[%clk 0:02:56]} 6. Nc3 {[%clk 0:02:56]}  Nc6 {[%clk 0:02:55]} 7. Bc4 {[%clk 0:02:56]}  h6 {[%clk 0:02:53]} 8. d3 {[%clk 0:02:57]}  Nge7 {[%clk 0:02:53]} 9. Nd5 {[%clk 0:02:56]}  Ng6 {[%clk 0:02:52]} 10. h4 {[%clk 0:02:52]}  g4 {[%clk 0:02:52]} 11. h5 {[%clk 0:02:52]}  Nge7 {[%clk 0:02:38]} 12. Nh4 {[%clk 0:02:49]}  a6 {[%clk 0:02:30]} 13. a4 {[%clk 0:02:45]}  Be6 {[%clk 0:02:26]} 14. Nf5 {[%clk 0:02:39]}  Nxf5 {[%clk 0:02:21]} 15. exf5 {[%clk 0:02:39]}  Bxf5 {[%clk 0:02:18]} 16. Ne3 {[%clk 0:02:39]}  Bc8 {[%clk 0:02:07]} 17. Bd5 {[%clk 0:02:21]}  f5 {[%clk 0:02:04]} 18. f3 {[%clk 0:02:04]}  Qg5 {[%clk 0:02:00]} 19. Qe2 {[%clk 0:01:58]}  Nb4 {[%clk 0:01:49]} 20. Bc3 {[%clk 0:01:47]}  Qxe3 {[%clk 0:01:41]} 21. Qxe3 {[%clk 0:01:41]}  Nxc2+ {[%clk 0:01:41]} 22. Kd2 {[%clk 0:01:42]}  Nxe3 {[%clk 0:01:42]} 23. Kxe3 {[%clk 0:01:43]}  Bf6 {[%clk 0:01:23]} 24. fxg4 {[%clk 0:01:41]}  Bg5+ {[%clk 0:01:22]} 25. Ke2 {[%clk 0:01:41]}  f4 {[%clk 0:01:14]} 26. Kf3 {[%clk 0:01:31]}  Ke7 {[%clk 0:01:12]} 27. b4 {[%clk 0:01:31]}  cxb4 {[%clk 0:01:10]} 28. Bxb4 {[%clk 0:01:32]}  Be6 {[%clk 0:01:10]} 29. Ke4 {[%clk 0:01:17]}  Rac8 {[%clk 0:01:00]} 30. Rac1 {[%clk 0:00:58]}  Bxg4 {[%clk 0:00:11]} 31. Bxb7 {[%clk 0:00:49]}  Rxc1 {[%clk 0:00:09]} 32. Rxc1 {[%clk 0:00:49]}  Bxh5 {[%clk 0:00:10]} 33. Rc7+ {[%clk 0:00:45]}  Kf6 {[%clk 0:00:10]} 34. Bxd6 {[%clk 0:00:43]}  Bg6+ {[%clk 0:00:11]} 35. Kd5 {[%clk 0:00:43]}  Rd8 {[%clk 0:00:11]} 36. Kc5 {[%clk 0:00:25]}  Re8 {[%clk 0:00:07]} 37. Bc6 {[%clk 0:00:24]}  Re6 {[%clk 0:00:07]} 38. Bd7 {[%clk 0:00:20]}  Bxd3 {[%clk 0:00:06]} 39. Bxe6 {[%clk 0:00:18]}  Kxe6 {[%clk 0:00:07]} 40. Rc6 {[%clk 0:00:17]}  Kf5 {[%clk 0:00:06]} 41. Bf8 {[%clk 0:00:09]}  e4 {[%clk 0:00:05]} 42. Bxh6 {[%clk 0:00:08]}  Be7+ {[%clk 0:00:05]} 43. Kd4 {[%clk 0:00:08]}  Bf1 {[%clk 0:00:03]} 44. Bg7 {[%clk 0:00:04]}  Bxg2 {[%clk 0:00:03]} 45. Be5 {[%clk 0:00:04]}  f3 {[%clk 0:00:03]} 46. Rc2 {[%clk 0:00:05]}  Bh4 {[%clk 0:00:03]} 47. Bc7 {[%clk 0:00:04]}  f2 {[%clk 0:00:03]} 48. Rc1 {[%clk 0:00:04]}  f1=Q {[%clk 0:00:04]} 49. Rxf1+ {[%clk 0:00:04]}  Bxf1 {[%clk 0:00:04]} 0-1


[Site "https://www.chess.com"]

[Event "Titled Tuesday Blitz July 25 Late 2023"]
[White "Bartel, Mateusz"]
[Black "Janaszak, Dawid"]
[WhiteFideId "1112635"]
[BlackFideId "1119206"]
[WhiteElo "2840"]
[BlackElo "2542"]
[Result "1-0"]
[Round "4"]
[TimeControl "180+2"]
[Date "2023.07.25"]
[WhiteClock "0:00:18"]
[BlackClock "0:00:02"]
[Board "41"]

1. e4 {[%clk 0:03:00]}  c5 {[%clk 0:02:59]} 2. Nf3 {[%clk 0:03:00]}  Nc6 {[%clk 0:02:58]} 3. Bc4 {[%clk 0:02:56]}  e6 {[%clk 0:02:51]} 4. O-O {[%clk 0:02:55]}  a6 {[%clk 0:02:51]} 5. Re1 {[%clk 0:02:55]}  b5 {[%clk 0:02:34]} 6. Bf1 {[%clk 0:02:53]}  Nge7 {[%clk 0:02:28]} 7. a4 {[%clk 0:02:47]}  Rb8 {[%clk 0:02:22]} 8. b3 {[%clk 0:02:39]}  d6 {[%clk 0:01:58]} 9. axb5 {[%clk 0:02:32]}  axb5 {[%clk 0:01:59]} 10. Na3 {[%clk 0:02:32]}  b4 {[%clk 0:01:58]} 11. Nc4 {[%clk 0:02:32]}  e5 {[%clk 0:01:57]} 12. Ne3 {[%clk 0:02:22]}  Ng6 {[%clk 0:01:52]} 13. Bc4 {[%clk 0:02:22]}  Be7 {[%clk 0:01:51]} 14. h3 {[%clk 0:02:12]}  O-O {[%clk 0:01:50]} 15. Nd5 {[%clk 0:02:02]}  Kh8 {[%clk 0:01:46]} 16. d3 {[%clk 0:01:54]}  f5 {[%clk 0:01:42]} 17. Nxe7 {[%clk 0:01:49]}  Qxe7 {[%clk 0:01:39]} 18. Ng5 {[%clk 0:01:28]}  h6 {[%clk 0:00:52]} 19. Qh5 {[%clk 0:01:27]}  Qf6 {[%clk 0:00:43]} 20. exf5 {[%clk 0:01:27]}  Bxf5 {[%clk 0:00:41]} 21. Nf3 {[%clk 0:01:12]}  Nf4 {[%clk 0:00:34]} 22. Bxf4 {[%clk 0:01:09]}  exf4 {[%clk 0:00:35]} 23. Bd5 {[%clk 0:01:03]}  Ne5 {[%clk 0:00:28]} 24. Nxe5 {[%clk 0:01:03]}  dxe5 {[%clk 0:00:28]} 25. Ra7 {[%clk 0:00:56]}  Rbd8 {[%clk 0:00:26]} 26. Qf3 {[%clk 0:00:54]}  Rfe8 {[%clk 0:00:21]} 27. Rea1 {[%clk 0:00:49]}  Re7 {[%clk 0:00:20]} 28. R7a6 {[%clk 0:00:45]}  Qg5 {[%clk 0:00:15]} 29. Be4 {[%clk 0:00:44]}  Bxe4 {[%clk 0:00:13]} 30. Qxe4 {[%clk 0:00:44]}  Rf8 {[%clk 0:00:12]} 31. Rg6 {[%clk 0:00:22]}  Qf5 {[%clk 0:00:11]} 32. Ra8 {[%clk 0:00:22]}  Kh7 {[%clk 0:00:08]} 33. Rxf8 {[%clk 0:00:20]}  Qxg6 {[%clk 0:00:02]} 34. Rh8+ {[%clk 0:00:18]} 1-0


[Site "https://www.chess.com"]

[Event "Titled Tuesday Blitz July 25 Late 2023"]
[White "Mordechai, Hanan"]
[Black "Fiorito, Joaquin"]
[WhiteFideId "2804166"]
[BlackFideId "180173"]
[WhiteElo "2541"]
[BlackElo "2797"]
[Result "1-0"]
[Round "4"]
[TimeControl "180+2"]
[Date "2023.07.25"]
[WhiteClock "0:00:32"]
[BlackClock "0:00:52"]
[Board "42"]

1. c4 {[%clk 0:02:59]}  Nf6 {[%clk 0:03:00]} 2. Nc3 {[%clk 0:02:58]}  e6 {[%clk 0:02:59]} 3. d4 {[%clk 0:02:55]}  Bb4 {[%clk 0:02:59]} 4. Bg5 {[%clk 0:02:54]}  h6 {[%clk 0:02:57]} 5. Bh4 {[%clk 0:02:54]}  d5 {[%clk 0:02:50]} 6. e3 {[%clk 0:02:51]}  g5 {[%clk 0:02:37]} 7. Bg3 {[%clk 0:02:50]}  Ne4 {[%clk 0:02:36]} 8. Qc2 {[%clk 0:02:48]}  h5 {[%clk 0:02:31]} 9. cxd5 {[%clk 0:02:32]}  exd5 {[%clk 0:02:31]} 10. f3 {[%clk 0:02:28]}  Nxg3 {[%clk 0:02:25]} 11. hxg3 {[%clk 0:02:29]}  Qe7 {[%clk 0:02:22]} 12. Kf2 {[%clk 0:02:25]}  h4 {[%clk 0:02:20]} 13. Nxd5 {[%clk 0:02:07]}  Qd6 {[%clk 0:02:21]} 14. Qe4+ {[%clk 0:01:56]}  Be6 {[%clk 0:02:17]} 15. Nf6+ {[%clk 0:01:42]}  Ke7 {[%clk 0:02:09]} 16. gxh4 {[%clk 0:01:37]}  Kxf6 {[%clk 0:01:51]} 17. hxg5+ {[%clk 0:01:36]}  Kg7 {[%clk 0:01:52]} 18. Rxh8 {[%clk 0:01:31]}  Kxh8 {[%clk 0:01:53]} 19. a3 {[%clk 0:01:19]}  Ba5 {[%clk 0:01:46]} 20. Bd3 {[%clk 0:01:16]}  Kg8 {[%clk 0:01:37]} 21. Ne2 {[%clk 0:01:10]}  Nc6 {[%clk 0:01:31]} 22. Rh1 {[%clk 0:01:04]}  Kf8 {[%clk 0:01:14]} 23. Rh8+ {[%clk 0:01:00]}  Ke7 {[%clk 0:01:15]} 24. Rxa8 {[%clk 0:01:00]}  Qh2 {[%clk 0:01:13]} 25. d5 {[%clk 0:00:51]}  Qh1 {[%clk 0:01:14]} 26. b4 {[%clk 0:00:46]}  Bb6 {[%clk 0:01:06]} 27. dxe6 {[%clk 0:00:40]}  fxe6 {[%clk 0:01:06]} 28. Nf4 {[%clk 0:00:38]}  Qh4+ {[%clk 0:01:04]} 29. Ke2 {[%clk 0:00:34]}  Nd8 {[%clk 0:00:52]} 30. Ng6+ {[%clk 0:00:32]} 1-0


[Site "https://www.chess.com"]

[Event "Titled Tuesday Blitz July 25 Late 2023"]
[White "Oro, Faustino"]
[Black "Principe, Alexander"]
[WhiteFideId "20000197"]
[BlackFideId "3804542"]
[WhiteElo "2785"]
[BlackElo "2538"]
[Result "1-0"]
[Round "4"]
[TimeControl "180+2"]
[Date "2023.07.25"]
[WhiteClock "0:00:09"]
[BlackClock "0:00:04"]
[Board "44"]

1. Nf3 {[%clk 0:03:00]}  Nf6 {[%clk 0:02:57]} 2. b3 {[%clk 0:03:00]}  g6 {[%clk 0:02:56]} 3. Bb2 {[%clk 0:03:00]}  Bg7 {[%clk 0:02:57]} 4. e3 {[%clk 0:03:00]}  d6 {[%clk 0:02:57]} 5. d4 {[%clk 0:03:00]}  b6 {[%clk 0:02:56]} 6. Be2 {[%clk 0:02:59]}  Bb7 {[%clk 0:02:56]} 7. O-O {[%clk 0:03:00]}  O-O {[%clk 0:02:56]} 8. c4 {[%clk 0:03:00]}  Nbd7 {[%clk 0:02:56]} 9. Nbd2 {[%clk 0:02:56]}  Ne4 {[%clk 0:02:57]} 10. Rc1 {[%clk 0:02:53]}  Ndf6 {[%clk 0:02:55]} 11. Qc2 {[%clk 0:02:48]}  a5 {[%clk 0:02:43]} 12. Rfd1 {[%clk 0:02:46]}  c5 {[%clk 0:02:25]} 13. d5 {[%clk 0:02:44]}  Nxd2 {[%clk 0:02:25]} 14. Nxd2 {[%clk 0:02:45]}  a4 {[%clk 0:02:25]} 15. Bc3 {[%clk 0:02:39]}  Qd7 {[%clk 0:02:16]} 16. e4 {[%clk 0:02:37]}  Ne8 {[%clk 0:01:31]} 17. f4 {[%clk 0:02:32]}  Bxc3 {[%clk 0:01:30]} 18. Qxc3 {[%clk 0:02:33]}  Ng7 {[%clk 0:01:26]} 19. e5 {[%clk 0:02:31]}  axb3 {[%clk 0:01:23]} 20. axb3 {[%clk 0:02:30]}  Qf5 {[%clk 0:01:09]} 21. Rf1 {[%clk 0:02:26]}  Ra2 {[%clk 0:01:03]} 22. Bd3 {[%clk 0:02:24]}  Qg4 {[%clk 0:01:01]} 23. h3 {[%clk 0:02:19]}  Qd7 {[%clk 0:01:00]} 24. Ne4 {[%clk 0:02:17]}  Nf5 {[%clk 0:00:55]} 25. exd6 {[%clk 0:02:07]}  Nxd6 {[%clk 0:00:54]} 26. Ng5 {[%clk 0:02:02]}  b5 {[%clk 0:00:50]} 27. Rce1 {[%clk 0:01:58]}  bxc4 {[%clk 0:00:48]} 28. bxc4 {[%clk 0:01:59]}  e6 {[%clk 0:00:33]} 29. Be4 {[%clk 0:01:55]}  exd5 {[%clk 0:00:31]} 30. Bxd5 {[%clk 0:01:52]}  Bxd5 {[%clk 0:00:31]} 31. cxd5 {[%clk 0:01:53]}  h6 {[%clk 0:00:27]} 32. Nf3 {[%clk 0:01:52]}  c4 {[%clk 0:00:21]} 33. Ne5 {[%clk 0:01:47]}  Qa7+ {[%clk 0:00:20]} 34. Kh1 {[%clk 0:01:43]}  h5 {[%clk 0:00:20]} 35. Nc6 {[%clk 0:01:22]}  Qc5 {[%clk 0:00:19]} 36. Qf6 {[%clk 0:01:12]}  Nf5 {[%clk 0:00:17]} 37. Qg5 {[%clk 0:00:45]}  Qxd5 {[%clk 0:00:15]} 38. Ne5 {[%clk 0:00:45]}  h4 {[%clk 0:00:12]} 39. Rf3 {[%clk 0:00:37]}  Qd2 {[%clk 0:00:09]} 40. Rg1 {[%clk 0:00:36]}  Kg7 {[%clk 0:00:08]} 41. Nxc4 {[%clk 0:00:34]}  Qe2 {[%clk 0:00:08]} 42. Ne5 {[%clk 0:00:33]}  Ng3+ {[%clk 0:00:08]} 43. Kh2 {[%clk 0:00:33]}  Nf5 {[%clk 0:00:07]} 44. Rb3 {[%clk 0:00:27]}  Re8 {[%clk 0:00:05]} 45. Ng4 {[%clk 0:00:22]}  Qe6 {[%clk 0:00:02]} 46. Rd3 {[%clk 0:00:19]}  Re7 {[%clk 0:00:03]} 47. Ne5 {[%clk 0:00:14]}  Re2 {[%clk 0:00:03]} 48. Nf3 {[%clk 0:00:14]}  Ng3 {[%clk 0:00:03]} 49. Qxh4 {[%clk 0:00:13]}  Nf5 {[%clk 0:00:04]} 50. Qg5 {[%clk 0:00:13]}  Re3 {[%clk 0:00:04]} 51. Rxe3 {[%clk 0:00:12]}  Qxe3 {[%clk 0:00:05]} 52. Re1 {[%clk 0:00:12]}  Qxe1 {[%clk 0:00:05]} 53. Nxe1 {[%clk 0:00:12]}  Rxe1 {[%clk 0:00:06]} 54. g4 {[%clk 0:00:12]}  Re2+ {[%clk 0:00:06]} 55. Kg1 {[%clk 0:00:12]}  Ne3 {[%clk 0:00:06]} 56. Qe5+ {[%clk 0:00:11]}  Kg8 {[%clk 0:00:07]} 57. Qf6 {[%clk 0:00:09]}  Nd5 {[%clk 0:00:04]} 58. Qd8+ {[%clk 0:00:09]} 1-0


[Site "https://www.chess.com"]

[Event "Titled Tuesday Blitz July 25 Late 2023"]
[White "Wu, Derek"]
[Black "ElDivis"]
[WhiteFideId "30914558"]
[WhiteElo "2771"]
[BlackElo "2536"]
[Result "1/2-1/2"]
[Round "4"]
[TimeControl "180+2"]
[Date "2023.07.25"]
[WhiteClock "0:00:05"]
[BlackClock "0:00:11"]
[Board "46"]

1. e4 {[%clk 0:03:00]}  c5 {[%clk 0:02:59]} 2. Nf3 {[%clk 0:03:01]}  d6 {[%clk 0:03:00]} 3. d4 {[%clk 0:03:01]}  cxd4 {[%clk 0:03:01]} 4. Nxd4 {[%clk 0:03:02]}  Nf6 {[%clk 0:03:01]} 5. Nc3 {[%clk 0:03:02]}  g6 {[%clk 0:03:01]} 6. Be3 {[%clk 0:03:01]}  Bg7 {[%clk 0:03:02]} 7. f3 {[%clk 0:03:02]}  O-O {[%clk 0:03:02]} 8. Qd2 {[%clk 0:03:02]}  Nc6 {[%clk 0:03:03]} 9. O-O-O {[%clk 0:03:02]}  d5 {[%clk 0:03:03]} 10. exd5 {[%clk 0:03:03]}  Nxd5 {[%clk 0:03:04]} 11. Nxc6 {[%clk 0:03:03]}  bxc6 {[%clk 0:03:05]} 12. Bd4 {[%clk 0:03:04]}  Nxc3 {[%clk 0:03:06]} 13. Qxc3 {[%clk 0:03:04]}  Bh6+ {[%clk 0:03:06]} 14. Be3 {[%clk 0:03:02]}  Bxe3+ {[%clk 0:03:06]} 15. Qxe3 {[%clk 0:03:02]}  Qb6 {[%clk 0:03:07]} 16. Re1 {[%clk 0:03:02]}  Be6 {[%clk 0:02:57]} 17. b3 {[%clk 0:02:43]}  Rfd8 {[%clk 0:02:39]} 18. h4 {[%clk 0:02:37]}  Qxe3+ {[%clk 0:02:00]} 19. Rxe3 {[%clk 0:02:38]}  a5 {[%clk 0:02:00]} 20. a4 {[%clk 0:02:34]}  Rd4 {[%clk 0:01:59]} 21. Rc3 {[%clk 0:02:22]}  Rad8 {[%clk 0:01:56]} 22. Bd3 {[%clk 0:02:17]}  R8d6 {[%clk 0:01:52]} 23. h5 {[%clk 0:02:15]}  Kg7 {[%clk 0:01:44]} 24. hxg6 {[%clk 0:01:59]}  hxg6 {[%clk 0:01:43]} 25. Kb2 {[%clk 0:01:56]}  Rb4 {[%clk 0:01:34]} 26. Re1 {[%clk 0:01:49]}  Kf6 {[%clk 0:01:32]} 27. Re3 {[%clk 0:01:25]}  Rb6 {[%clk 0:00:46]} 28. Rc5 {[%clk 0:01:23]}  Rd5 {[%clk 0:00:47]} 29. Rc3 {[%clk 0:01:12]}  Rg5 {[%clk 0:00:30]} 30. g4 {[%clk 0:01:07]}  Re5 {[%clk 0:00:21]} 31. Rxe5 {[%clk 0:00:52]}  Kxe5 {[%clk 0:00:22]} 32. Rc5+ {[%clk 0:00:52]}  Kf4 {[%clk 0:00:22]} 33. Rxa5 {[%clk 0:00:31]}  Kxf3 {[%clk 0:00:22]} 34. g5 {[%clk 0:00:30]}  Kf4 {[%clk 0:00:20]} 35. Rc5 {[%clk 0:00:27]}  Bf5 {[%clk 0:00:20]} 36. a5 {[%clk 0:00:25]}  Rb8 {[%clk 0:00:20]} 37. Rxc6 {[%clk 0:00:12]}  e5 {[%clk 0:00:19]} 38. Bc4 {[%clk 0:00:10]}  e4 {[%clk 0:00:19]} 39. Bxf7 {[%clk 0:00:10]}  e3 {[%clk 0:00:19]} 40. Bc4 {[%clk 0:00:11]}  Rb4 {[%clk 0:00:17]} 41. Rc7 {[%clk 0:00:07]}  Be4 {[%clk 0:00:13]} 42. Kc3 {[%clk 0:00:07]}  Rb8 {[%clk 0:00:12]} 43. Rf7+ {[%clk 0:00:06]}  Kg3 {[%clk 0:00:11]} 44. a6 {[%clk 0:00:07]}  Bf3 {[%clk 0:00:09]} 45. a7 {[%clk 0:00:06]}  Ra8 {[%clk 0:00:09]} 46. Rxf3+ {[%clk 0:00:05]}  Kxf3 {[%clk 0:00:10]} 47. Bd5+ {[%clk 0:00:05]}  Kf2 {[%clk 0:00:10]} 48. Bxa8 {[%clk 0:00:05]}  e2 {[%clk 0:00:11]} 49. Kb2 {[%clk 0:00:04]}  e1=Q {[%clk 0:00:12]} 50. Bc6 {[%clk 0:00:04]}  Qe5+ {[%clk 0:00:11]} 51. Kb1 {[%clk 0:00:03]}  Qe1+ {[%clk 0:00:11]} 52. Kb2 {[%clk 0:00:04]}  Qe5+ {[%clk 0:00:11]} 53. Kb1 {[%clk 0:00:04]}  Qe1+ {[%clk 0:00:11]} 54. Kb2 {[%clk 0:00:05]} 1/2-1/2


[Site "https://www.chess.com"]

[Event "Titled Tuesday Blitz July 25 Late 2023"]
[White "Pulpan, Jakub"]
[Black "Karamsetty, Jeevan"]
[WhiteFideId "302759"]
[BlackFideId "2025337"]
[WhiteElo "2769"]
[BlackElo "2530"]
[Result "1-0"]
[Round "4"]
[TimeControl "180+2"]
[Date "2023.07.25"]
[WhiteClock "0:00:08"]
[BlackClock "0:00:00"]
[Board "48"]

1. Nf3 {[%clk 0:03:00]}  g6 {[%clk 0:02:58]} 2. g3 {[%clk 0:02:59]}  Bg7 {[%clk 0:02:59]} 3. Bg2 {[%clk 0:03:00]}  Nf6 {[%clk 0:02:58]} 4. O-O {[%clk 0:03:00]}  O-O {[%clk 0:02:58]} 5. b3 {[%clk 0:03:01]}  d6 {[%clk 0:02:55]} 6. d4 {[%clk 0:03:01]}  a5 {[%clk 0:02:54]} 7. a4 {[%clk 0:03:01]}  b6 {[%clk 0:02:45]} 8. Bb2 {[%clk 0:03:01]}  Bb7 {[%clk 0:02:45]} 9. Nbd2 {[%clk 0:03:02]}  Nbd7 {[%clk 0:02:41]} 10. Re1 {[%clk 0:03:02]}  Re8 {[%clk 0:02:39]} 11. e4 {[%clk 0:03:02]}  e5 {[%clk 0:02:39]} 12. dxe5 {[%clk 0:03:03]}  dxe5 {[%clk 0:02:34]} 13. Qe2 {[%clk 0:02:57]}  c6 {[%clk 0:02:11]} 14. Qe3 {[%clk 0:02:53]}  Qc7 {[%clk 0:02:07]} 15. Red1 {[%clk 0:02:40]}  Ba6 {[%clk 0:02:02]} 16. Bf1 {[%clk 0:02:38]}  Bxf1 {[%clk 0:02:00]} 17. Kxf1 {[%clk 0:02:38]}  Nc5 {[%clk 0:01:57]} 18. Kg2 {[%clk 0:02:34]}  Rad8 {[%clk 0:01:43]} 19. h3 {[%clk 0:02:14]}  h5 {[%clk 0:01:43]} 20. Ba3 {[%clk 0:02:04]}  Ne6 {[%clk 0:01:35]} 21. Nc4 {[%clk 0:01:56]}  Nd4 {[%clk 0:01:25]} 22. Rac1 {[%clk 0:01:53]}  c5 {[%clk 0:01:18]} 23. Ncd2 {[%clk 0:01:42]}  Qc6 {[%clk 0:01:11]} 24. c3 {[%clk 0:01:37]}  Nxf3 {[%clk 0:01:08]} 25. Qxf3 {[%clk 0:01:31]}  Bh6 {[%clk 0:01:07]} 26. Rc2 {[%clk 0:01:30]}  Bxd2 {[%clk 0:01:01]} 27. Rcxd2 {[%clk 0:01:30]}  Rxd2 {[%clk 0:01:02]} 28. Rxd2 {[%clk 0:01:30]}  Nxe4 {[%clk 0:01:01]} 29. Rd1 {[%clk 0:01:21]}  f5 {[%clk 0:00:57]} 30. c4 {[%clk 0:01:15]}  Kg7 {[%clk 0:00:39]} 31. Bb2 {[%clk 0:01:12]}  Kf6 {[%clk 0:00:37]} 32. h4 {[%clk 0:01:04]}  Re6 {[%clk 0:00:33]} 33. Rd5 {[%clk 0:01:03]}  Nd6 {[%clk 0:00:18]} 34. Kh2 {[%clk 0:00:38]}  Nf7 {[%clk 0:00:18]} 35. Qd3 {[%clk 0:00:37]}  Qe8 {[%clk 0:00:15]} 36. Rd7 {[%clk 0:00:33]}  Re7 {[%clk 0:00:11]} 37. Rd5 {[%clk 0:00:31]}  Kg7 {[%clk 0:00:11]} 38. f4 {[%clk 0:00:29]}  Kh7 {[%clk 0:00:09]} 39. Qc3 {[%clk 0:00:30]}  Nh6 {[%clk 0:00:05]} 40. Kh3 {[%clk 0:00:21]}  exf4 {[%clk 0:00:02]} 41. Qf6 {[%clk 0:00:14]}  Ng4 {[%clk 0:00:02]} 42. Qxb6 {[%clk 0:00:11]}  Nf2+ {[%clk 0:00:02]} 43. Kg2 {[%clk 0:00:11]}  Ng4 {[%clk 0:00:03]} 44. Kh3 {[%clk 0:00:08]}  fxg3 {[%clk 0:00:04]} 45. Rd8 {[%clk 0:00:07]}  Nf2+ {[%clk 0:00:03]} 46. Kg2 {[%clk 0:00:08]}  Ng4 {[%clk 0:00:02]} 47. Rxe8 {[%clk 0:00:08]}  Rxe8 {[%clk 0:00:00]} 48. Qc7+ {[%clk 0:00:08]} 1-0


[Site "https://www.chess.com"]

[Event "Titled Tuesday Blitz July 25 Late 2023"]
[White "Kochiev, Ivan"]
[Black "Bolourchifard, Farzad"]
[WhiteFideId "2917890"]
[BlackFideId "12510084"]
[WhiteElo "2519"]
[BlackElo "2763"]
[Result "1-0"]
[Round "4"]
[TimeControl "180+2"]
[Date "2023.07.25"]
[WhiteClock "0:00:14"]
[BlackClock "0:00:22"]
[Board "52"]

1. e4 {[%clk 0:03:00]}  e5 {[%clk 0:02:59]} 2. Nf3 {[%clk 0:03:01]}  Nc6 {[%clk 0:03:00]} 3. Bc4 {[%clk 0:03:01]}  Bc5 {[%clk 0:03:00]} 4. c3 {[%clk 0:03:01]}  Nf6 {[%clk 0:03:00]} 5. d3 {[%clk 0:03:02]}  a6 {[%clk 0:03:00]} 6. Bb3 {[%clk 0:03:01]}  d6 {[%clk 0:03:01]} 7. O-O {[%clk 0:03:02]}  h6 {[%clk 0:03:00]} 8. Nbd2 {[%clk 0:03:02]}  Be6 {[%clk 0:03:00]} 9. Re1 {[%clk 0:02:58]}  Ba7 {[%clk 0:02:59]} 10. Nf1 {[%clk 0:02:58]}  g5 {[%clk 0:02:58]} 11. Be3 {[%clk 0:02:49]}  g4 {[%clk 0:02:50]} 12. N3d2 {[%clk 0:02:46]}  Qe7 {[%clk 0:02:41]} 13. Bxa7 {[%clk 0:02:42]}  Rxa7 {[%clk 0:02:42]} 14. Ne3 {[%clk 0:02:39]}  h5 {[%clk 0:02:40]} 15. Nd5 {[%clk 0:02:37]}  Qd8 {[%clk 0:02:30]} 16. Qe2 {[%clk 0:02:30]}  Kf8 {[%clk 0:02:19]} 17. Qe3 {[%clk 0:02:27]}  Ra8 {[%clk 0:02:17]} 18. d4 {[%clk 0:02:25]}  exd4 {[%clk 0:02:05]} 19. cxd4 {[%clk 0:02:25]}  Bxd5 {[%clk 0:02:03]} 20. exd5 {[%clk 0:02:17]}  Ne7 {[%clk 0:02:03]} 21. Qg5 {[%clk 0:02:16]}  Neg8 {[%clk 0:01:43]} 22. Nf1 {[%clk 0:01:34]}  h4 {[%clk 0:01:42]} 23. Ne3 {[%clk 0:01:32]}  Rh5 {[%clk 0:01:41]} 24. Qf4 {[%clk 0:01:27]}  Qd7 {[%clk 0:01:41]} 25. Rac1 {[%clk 0:01:23]}  Re8 {[%clk 0:01:40]} 26. f3 {[%clk 0:01:18]}  g3 {[%clk 0:01:10]} 27. hxg3 {[%clk 0:01:14]}  hxg3 {[%clk 0:00:47]} 28. Qxg3 {[%clk 0:00:58]}  Rh7 {[%clk 0:00:47]} 29. Bc2 {[%clk 0:00:56]}  Rg7 {[%clk 0:00:47]} 30. Qh4 {[%clk 0:00:54]}  Qb5 {[%clk 0:00:38]} 31. Nf5 {[%clk 0:00:49]}  Rh7 {[%clk 0:00:35]} 32. Rxe8+ {[%clk 0:00:39]}  Qxe8 {[%clk 0:00:34]} 33. Qg3 {[%clk 0:00:26]}  Qe2 {[%clk 0:00:34]} 34. Bb1 {[%clk 0:00:15]}  Ne8 {[%clk 0:00:26]} 35. Re1 {[%clk 0:00:13]}  Qd2 {[%clk 0:00:23]} 36. Qxg8+ {[%clk 0:00:13]}  Kxg8 {[%clk 0:00:22]} 37. Rxe8# {[%clk 0:00:14]} 1-0


[Site "https://www.chess.com"]

[Event "Titled Tuesday Blitz July 25 Late 2023"]
[White "Fantastic_Power"]
[Black "Deng, Henry"]
[BlackFideId "30965454"]
[WhiteElo "2757"]
[BlackElo "2518"]
[Result "0-1"]
[Round "4"]
[TimeControl "180+2"]
[Date "2023.07.25"]
[WhiteClock "0:00:03"]
[BlackClock "0:00:30"]
[Board "53"]

1. e4 {[%clk 0:02:55]}  c5 {[%clk 0:02:56]} 2. d4 {[%clk 0:02:55]}  cxd4 {[%clk 0:02:54]} 3. Nf3 {[%clk 0:02:56]}  Nc6 {[%clk 0:02:51]} 4. Nxd4 {[%clk 0:02:56]}  Nf6 {[%clk 0:02:52]} 5. Nc3 {[%clk 0:02:55]}  e6 {[%clk 0:02:52]} 6. Ndb5 {[%clk 0:02:53]}  Bc5 {[%clk 0:02:50]} 7. Bf4 {[%clk 0:02:52]}  O-O {[%clk 0:02:50]} 8. Bc7 {[%clk 0:02:52]}  Qe7 {[%clk 0:02:50]} 9. Bd6 {[%clk 0:02:52]}  Bxd6 {[%clk 0:02:51]} 10. Qxd6 {[%clk 0:02:53]}  Qd8 {[%clk 0:02:51]} 11. O-O-O {[%clk 0:02:52]}  a6 {[%clk 0:02:50]} 12. Nd4 {[%clk 0:02:53]}  Ne7 {[%clk 0:02:51]} 13. g4 {[%clk 0:02:52]}  b5 {[%clk 0:02:49]} 14. g5 {[%clk 0:02:50]}  Ne8 {[%clk 0:02:48]} 15. Qg3 {[%clk 0:02:51]}  Qa5 {[%clk 0:02:45]} 16. Nb3 {[%clk 0:02:48]}  Qb6 {[%clk 0:02:42]} 17. f4 {[%clk 0:02:41]}  b4 {[%clk 0:02:33]} 18. Ne2 {[%clk 0:02:35]}  Bb7 {[%clk 0:02:29]} 19. Bg2 {[%clk 0:02:34]}  d5 {[%clk 0:02:29]} 20. f5 {[%clk 0:02:27]}  exf5 {[%clk 0:02:28]} 21. exd5 {[%clk 0:02:27]}  Nd6 {[%clk 0:02:26]} 22. Rhe1 {[%clk 0:02:18]}  Ng6 {[%clk 0:02:16]} 23. Nf4 {[%clk 0:02:11]}  Rac8 {[%clk 0:02:08]} 24. h4 {[%clk 0:01:42]}  a5 {[%clk 0:02:05]} 25. Nd4 {[%clk 0:01:36]}  Rc4 {[%clk 0:01:57]} 26. Nxg6 {[%clk 0:01:30]}  hxg6 {[%clk 0:01:57]} 27. Nc6 {[%clk 0:01:29]}  Bxc6 {[%clk 0:01:42]} 28. dxc6 {[%clk 0:01:12]}  Ne4 {[%clk 0:01:42]} 29. Bxe4 {[%clk 0:01:07]}  fxe4 {[%clk 0:01:42]} 30. Qd6 {[%clk 0:00:55]}  Rxc6 {[%clk 0:01:39]} 31. Qd5 {[%clk 0:00:52]}  Rfc8 {[%clk 0:01:32]} 32. Re2 {[%clk 0:00:51]}  e3 {[%clk 0:01:29]} 33. Rh1 {[%clk 0:00:34]}  a4 {[%clk 0:01:26]} 34. Kb1 {[%clk 0:00:32]}  Rd6 {[%clk 0:01:16]} 35. Qe4 {[%clk 0:00:29]}  b3 {[%clk 0:01:15]} 36. axb3 {[%clk 0:00:26]}  axb3 {[%clk 0:01:15]} 37. cxb3 {[%clk 0:00:26]}  Qxb3 {[%clk 0:00:59]} 38. Rxe3 {[%clk 0:00:19]}  Rd1+ {[%clk 0:00:59]} 39. Rxd1 {[%clk 0:00:19]}  Qxd1+ {[%clk 0:00:59]} 40. Ka2 {[%clk 0:00:20]}  Qd7 {[%clk 0:00:45]} 41. Rd3 {[%clk 0:00:17]}  Qb5 {[%clk 0:00:42]} 42. Rb3 {[%clk 0:00:15]}  Qa5+ {[%clk 0:00:39]} 43. Ra3 {[%clk 0:00:15]}  Qb5 {[%clk 0:00:39]} 44. Rb3 {[%clk 0:00:15]}  Qa5+ {[%clk 0:00:39]} 45. Ra3 {[%clk 0:00:16]}  Qb5 {[%clk 0:00:38]} 46. Qd4 {[%clk 0:00:16]}  Qc6 {[%clk 0:00:34]} 47. Rc3 {[%clk 0:00:14]}  Qe6+ {[%clk 0:00:35]} 48. Kb1 {[%clk 0:00:13]}  Qe1+ {[%clk 0:00:34]} 49. Kc2 {[%clk 0:00:13]}  Re8 {[%clk 0:00:35]} 50. Rd3 {[%clk 0:00:11]}  Qe2+ {[%clk 0:00:34]} 51. Kb3 {[%clk 0:00:10]}  Qe6+ {[%clk 0:00:33]} 52. Kc2 {[%clk 0:00:10]}  Rc8+ {[%clk 0:00:33]} 53. Rc3 {[%clk 0:00:10]}  Re8 {[%clk 0:00:33]} 54. Rd3 {[%clk 0:00:09]}  Qc6+ {[%clk 0:00:33]} 55. Rc3 {[%clk 0:00:09]}  Qg2+ {[%clk 0:00:32]} 56. Kb3 {[%clk 0:00:09]}  Rb8+ {[%clk 0:00:31]} 57. Ka4 {[%clk 0:00:03]}  Qa8+ {[%clk 0:00:30]} 0-1


[Site "https://www.chess.com"]